bitfinex/quotes_SOLUSD_20250518
["timestamp","ask_amount","ask_price","bid_price","bid_amount"]
[1747595145386,20.9,170.09,169.98,26.0]
[1747595145893,36.14969762,170.09,169.98,31.88273436]
[1747595146690,15.24969762,170.08,169.98,31.88273436]
[1747595147303,36.14969762,170.09,169.98,31.88273436]
[1747595147609,15.24969762,170.08,169.98,31.88273436]
[1747595147789,24.43360006,170.08,169.98,31.88273436]
[1747595148484,24.43360006,170.07,169.98,31.88273436]
[1747595148891,5.87963399,170.08,169.98,31.88273436]
[1747595149102,24.43360006,170.07,169.98,31.88273436]
[1747595150312,24.43360006,170.06,169.98,31.88273436]
[1747595150511,137.37662314,170.08,169.98,46.59034702]
[1747595150719,137.37662314,170.08,170.0,20.58823529]
[1747595153807,5.87678026,170.17,170.05,26.0]
[1747595153996,137.37662314,170.16,170.05,26.0]
[1747595154202,137.37662314,170.16,170.06,18.64964886]
[1747595154707,161.8102232,170.16,170.06,18.64964886]
[1747595154911,167.68715223,170.16,170.07,5.87993179]
[1747595155087,24.43360006,170.15,170.07,5.87993179]
[1747595156113,24.43360006,170.15,170.06,5.88027754]
[1747595156302,30.31086074,170.15,170.06,5.88027754]
[1747595156818,24.43360006,170.14,170.06,5.88027754]
[1747595157525,30.31129092,170.14,170.06,5.88027754]
[1747595157719,24.43360006,170.14,170.06,5.88027754]
[1747595158329,30.31117346,170.14,170.06,5.88027754]
[1747595158838,5.8775734,170.14,170.06,5.88027754]
[1747595159036,30.31082712,170.15,170.06,5.88027754]
[1747595159544,5.87722706,170.15,170.06,5.88027754]
[1747595159726,30.31082712,170.15,170.06,5.88027754]
[1747595160043,30.31143605,170.14,170.06,5.88027754]
[1747595160233,24.43360006,170.13,170.06,5.88027754]
[1747595160435,137.37662314,170.12,170.06,5.88027754]
[1747595162831,24.43360006,170.08,170.01,5.88200694]
[1747595163037,137.37662314,170.11,170.01,31.88200694]
[1747595163217,30.31249482,170.1,170.01,31.88200694]
[1747595163919,143.25528521,170.11,170.01,46.58702429]
[1747595164134,161.8102232,170.11,170.01,46.58702429]
[1747595164339,137.37662314,170.11,170.02,18.64964886]
[1747595164934,137.37662314,170.11,170.05,26.0]
[1747595165135,137.37662314,170.11,170.06,5.88027754]
[1747595165339,137.37662314,170.15,170.09,26.0]
[1747595166146,167.68754699,170.15,170.06,26.74027754]
[1747595167243,30.31145816,170.13,170.06,5.88027754]
[1747595167856,161.8102232,170.12,170.04,5.88062518]
[1747595168059,137.37662314,170.11,170.04,5.88062518]
[1747595168354,137.37662314,170.11,170.05,18.64964886]
[1747595168679,137.37662314,170.11,170.08,26.0]
[1747595168948,143.25326332,170.17,170.08,26.0]
[1747595169123,32.33300006,170.18,170.06,5.88027754]
[1747595169124,30.31076726,170.15,170.06,5.88027754]
[1747595169318,24.43360006,170.14,170.06,5.88027754]
[1747595169750,24.43360006,170.13,170.06,5.88027754]
[1747595169956,137.37662314,170.14,170.07,18.64964886]
[1747595171246,137.37662314,170.18,170.09,25.27034886]
[1747595171436,137.37662314,170.18,170.12,26.0]
[1747595171638,1.6641,170.22,170.13,18.64964886]
[1747595171845,137.37662314,170.23,170.13,18.64964886]
[1747595172345,137.37662314,170.23,170.13,39.50964886]
[1747595172565,137.37662314,170.23,170.13,60.34964886]
[1747595172866,26.7133178,170.27,170.17,18.64964886]
[1747595173228,24.43360006,170.26,170.18,5.87613115]
[1747595173641,24.43360006,170.25,170.17,26.0]
[1747595174259,41.39588078,170.27,170.17,26.0]
[1747595174260,51.14691786,170.27,170.17,26.0]
[1747595174443,24.43360006,170.26,170.17,26.0]
[1747595175561,26.7133178,170.27,170.14,5.87751263]
[1747595175562,24.43360006,170.23,170.14,5.87751263]
[1747595176363,24.43360006,170.22,170.13,73.57778177]
[1747595176566,24.43360006,170.22,170.13,26.73778177]
[1747595177541,24.43360006,170.2,170.13,20.86]
[1747595177858,30.30869553,170.21,170.13,20.86]
[1747595178033,30.30869553,170.21,170.11,31.87828217]
[1747595178654,30.30869553,170.21,170.11,5.87828217]
[1747595178856,137.37662314,170.2,170.11,5.87828217]
[1747595179257,5.87578588,170.19,170.11,5.87828217]
[1747595180263,30.30938594,170.19,170.11,5.87828217]
[1747595180466,161.8102232,170.18,170.09,12.49969971]
[1747595180676,137.37662314,170.18,170.09,12.49969971]
[1747595182086,24.43360006,170.15,170.05,5.88062334]
[1747595182283,137.37662314,170.14,170.09,26.0]
[1747595182445,137.37662314,170.18,170.1,5.87889476]
[1747595182648,137.37662314,170.18,170.1,26.73889476]
[1747595183063,143.25282164,170.18,170.1,26.73889476]
[1747595183875,137.37662314,170.18,170.1,26.73889476]
[1747595184171,137.37662314,170.18,170.13,26.0]
[1747595184357,137.37662314,170.18,170.13,31.87768381]
[1747595184553,137.37662314,170.18,170.12,5.87811884]
[1747595185466,143.25282949,170.18,170.12,5.87811884]
[1747595185647,137.37662314,170.18,170.12,5.87811884]
[1747595186461,137.37662314,170.18,170.12,20.57362789]
[1747595186657,137.37662314,170.18,170.13,18.64964886]
[1747595186857,144.88995906,170.22,170.13,44.64964886]
[1747595187159,137.37662314,170.22,170.13,44.64964886]
[1747595187361,143.25138406,170.22,170.13,44.64964886]
[1747595187758,137.37662314,170.22,170.13,44.64964886]
[1747595188457,143.25143355,170.22,170.13,44.64964886]
[1747595188968,137.37662314,170.22,170.15,18.64964886]
[1747595189176,145.17132314,170.26,170.17,18.64964886]
[1747595189371,139.01512314,170.26,170.17,18.64964886]
[1747595189558,144.88853741,170.26,170.17,18.64964886]
[1747595190566,144.88853741,170.26,170.18,5.87613115]
[1747595190958,139.01512314,170.26,170.18,5.87613115]
[1747595191565,137.37662314,170.26,170.18,25.20843093]
[1747595193681,137.37662314,170.26,170.21,26.0]
[1747595194653,137.37662314,170.26,170.25,26.0]
[1747595194856,137.37662314,170.33,170.26,5.87337013]
[1747595195066,137.37662314,170.32,170.26,5.87337013]
[1747595195485,137.37662314,170.32,170.26,20.55679547]
[1747595195696,137.37662314,170.32,170.27,18.64964886]
[1747595195862,137.37662314,170.38,170.27,18.64964886]
[1747595196062,143.24600324,170.38,170.27,18.64964886]
[1747595196463,137.37662314,170.37,170.31,18.64964886]
[1747595196880,137.37662314,170.42,170.32,5.87130108]
[1747595197189,167.6781693,170.42,170.32,5.87130108]
[1747595197571,24.43360006,170.41,170.3,44.64964886]
[1747595197890,24.43360006,170.39,170.3,26.0]
[1747595198073,137.37662314,170.38,170.3,26.0]
[1747595198881,143.24604594,170.38,170.3,26.0]
[1747595200096,164.00604594,170.38,170.28,52.65263431]
[1747595200687,24.43360006,170.37,170.28,46.78]
[1747595200999,203.11272969,170.38,170.28,52.65264343]
[1747595201364,24.43360006,170.37,170.28,46.78]
[1747595201565,24.43360006,170.35,170.28,20.78]
[1747595201784,137.37662314,170.34,170.28,20.78]
[1747595202485,161.8102232,170.34,170.28,20.78]
[1747595202686,137.37662314,170.34,170.28,20.78]
[1747595203092,5.87095637,170.33,170.28,20.78]
[1747595205880,137.37662314,170.32,170.26,26.0]
[1747595206398,137.37662314,170.32,170.26,31.87328243]
[1747595213083,137.37662314,170.32,170.27,18.64964886]
[1747595213407,137.37662314,170.32,170.31,5.87164582]
[1747595213575,139.00112314,170.38,170.31,5.87164582]
[1747595213979,144.87045147,170.38,170.31,5.87164582]
[1747595214504,137.37662314,170.38,170.31,20.55076037]
[1747595214683,137.37662314,170.38,170.32,18.64964886]
[1747595215011,137.37662314,170.38,170.32,19.82358621]
[1747595215204,137.37662314,170.38,170.35,26.0]
[1747595215417,144.74867316,170.43,170.36,5.86992251]
[1747595215903,24.43360006,170.42,170.35,46.76]
[1747595217401,5.86820022,170.41,170.35,46.76]
[1747595218601,5.86820022,170.41,170.33,46.72]
[1747595219088,30.30180028,170.41,170.33,46.72]
[1747595220187,24.43360006,170.4,170.33,46.72]
[1747595220385,20.53870077,170.41,170.33,46.72]
[1747595220386,24.43360006,170.39,170.33,26.0]
[1747595220580,137.37662314,170.38,170.33,26.0]
[1747595220796,161.8102232,170.38,170.3,20.76]
[1747595221585,143.24646437,170.37,170.3,20.76]
[1747595221792,167.68006443,170.37,170.3,20.76]
[1747595222104,137.37662314,170.37,170.3,26.63190872]
[1747595224175,143.24621072,170.37,170.3,26.63190872]
[1747595224808,158.45961433,170.37,170.3,26.63190872]
[1747595225187,15.21340361,170.35,170.32,26.0]
[1747595225385,15.21340361,170.36,170.32,26.0]
[1747595225683,21.08364683,170.36,170.32,26.0]
[1747595226310,21.08364683,170.36,170.28,5.87264114]
[1747595226608,137.37662314,170.35,170.31,26.0]
[1747595227492,137.37662314,170.35,170.3,26.0]
[1747595227807,137.37662314,170.35,170.31,26.0]
[1747595229006,137.37662314,170.35,170.3,26.0]
[1747595229812,143.24691754,170.35,170.31,26.0]
[1747595231412,158.46032115,170.35,170.31,26.0]
[1747595231610,15.21340361,170.33,170.27,26.0]
[1747595232188,15.21340361,170.32,170.27,26.0]
[1747595232716,15.21340361,170.3,170.24,20.7]
[1747595233091,15.21340361,170.3,170.24,46.7]
[1747595233426,15.21340361,170.28,170.18,47.06314886]
[1747595233731,24.38047308,170.26,170.21,26.0]
[1747595233886,24.38047308,170.25,170.21,26.0]
[1747595234081,24.38047308,170.24,170.18,20.7]
[1747595234285,161.75709622,170.23,170.18,20.7]
[1747595234485,161.75709622,170.23,170.18,26.0]
[1747595234791,137.37662314,170.23,170.18,26.0]
[1747595234996,161.75709622,170.23,170.18,26.0]
[1747595235685,137.37662314,170.23,170.19,26.0]
[1747595235915,137.37662314,170.23,170.17,18.64964886]
[1747595236210,137.37662314,170.23,170.19,26.0]
[1747595237602,137.37662314,170.23,170.22,26.0]
[1747595237801,158.05662314,170.29,170.23,26.0]
[1747595238419,158.05662314,170.29,170.21,26.0]
[1747595239321,24.38047308,170.28,170.21,26.0]
[1747595239501,24.38047308,170.27,170.21,26.0]
[1747595239701,182.43709622,170.29,170.21,31.87484755]
[1747595239922,158.05662314,170.29,170.21,31.87484755]
[1747595240439,139.03822314,170.32,170.22,18.64964886]
[1747595240820,139.03822314,170.32,170.21,74.93368622]
[1747595240821,24.38047308,170.31,170.21,39.56594755]
[1747595241153,24.38047308,170.31,170.21,60.26594755]
[1747595241334,24.38047308,170.29,170.21,26.0]
[1747595241658,30.25345179,170.28,170.21,26.0]
[1747595242248,30.25345179,170.28,170.21,31.87499276]
[1747595244427,30.25345179,170.28,170.21,26.0]
[1747595244748,24.38047308,170.24,170.17,26.5764737]
[1747595245139,24.38047308,170.25,170.17,26.5764737]
[1747595245855,24.38047308,170.22,170.17,20.7]
[1747595246719,138.99712314,170.24,170.15,26.0]
[1747595246720,24.38047308,170.2,170.15,26.0]
[1747595246922,167.63219169,170.21,170.15,26.0]
[1747595248355,137.37662314,170.21,170.15,26.0]
[1747595248556,24.38047308,170.19,170.14,1.12]
[1747595248858,24.38047308,170.16,170.09,5.87894105]
[1747595249030,24.38047308,170.15,170.08,5.87952513]
[1747595249356,24.38047308,170.15,170.07,20.7]
[1747595249357,24.38047308,170.14,170.07,20.7]
[1747595249523,24.38047308,170.13,170.04,6.4551]
[1747595249727,24.38047308,170.11,170.02,26.58166098]
[1747595249948,24.38047308,170.11,170.05,26.0]
[1747595250333,24.38047308,170.12,170.05,26.0]
[1747595250662,30.25873002,170.12,170.05,31.8803369]
[1747595250852,5.8771672,170.15,170.05,31.8803369]
[1747595251346,24.38047308,170.14,170.05,31.8803369]
[1747595251545,24.38047308,170.14,170.05,5.8803369]
[1747595251750,24.38047308,170.12,170.05,5.8803369]
[1747595251955,24.38047308,170.1,170.02,20.7]
[1747595252255,24.38047308,170.1,170.02,52.58156771]
[1747595252946,30.25941972,170.1,170.02,52.58156771]
[1747595253146,137.37662314,170.11,170.02,52.58156771]
[1747595253348,24.38047308,170.1,170.02,52.58156771]
[1747595254362,24.38047308,170.09,170.02,46.7]
[1747595254536,137.37662314,170.08,170.02,46.7]
[1747595255067,137.37662314,170.08,170.02,52.58155674]
[1747595255370,137.37662314,170.08,170.03,18.64964886]
[1747595256045,137.37662314,170.08,170.02,52.58155674]
[1747595256544,137.37662314,170.08,170.03,18.64964886]
[1747595257150,137.37662314,170.08,170.04,5.88096918]
[1747595257577,143.25489141,170.12,170.04,5.88096918]
[1747595257746,167.63536449,170.12,170.04,5.88096918]
[1747595257945,137.37662314,170.12,170.07,26.0]
[1747595258148,24.38047308,170.14,170.04,7.45966918]
[1747595258467,24.38047308,170.12,170.05,26.0]
[1747595258642,20.57011886,170.15,170.06,26.0]
[1747595258643,24.38047308,170.1,170.06,26.0]
[1747595258836,24.38047308,170.11,170.06,26.0]
[1747595259167,24.38047308,170.11,170.03,5.88124109]
[1747595259168,167.63599098,170.1,170.03,26.0]
[1747595259532,24.38047308,170.07,170.02,20.7]
[1747595259734,24.38047308,170.08,170.0,5.88231491]
[1747595259960,161.75709622,170.09,170.0,31.88231491]
[1747595261079,137.37662314,170.09,170.04,26.0]
[1747595261249,137.37662314,170.09,170.05,5.88062334]
[1747595261438,20.66,170.12,170.05,5.88062334]
[1747595261637,137.37662314,170.14,170.05,5.88062334]
[1747595261971,143.2542272,170.14,170.05,5.88062334]
[1747595263372,24.38047308,170.11,170.03,26.54125407]
[1747595264683,5.8778581,170.13,170.03,26.54125407]
[1747595264871,30.25833118,170.13,170.03,26.54125407]
[1747595265991,5.8778581,170.13,170.03,26.54125407]
[1747595266149,143.25417659,170.14,170.06,26.0]
[1747595266870,24.38047308,170.12,170.03,26.54125407]
[1747595267063,24.38047308,170.11,170.04,26.0]
[1747595267242,24.38047308,170.09,170.03,20.66]
[1747595267446,24.38047308,170.09,170.03,26.0]
[1747595267682,137.37662314,170.1,170.03,26.0]
[1747595267683,161.75709622,170.1,170.03,26.0]
[1747595268374,5.8792404,170.09,170.03,26.0]
[1747595268777,5.8792404,170.09,170.03,31.88126237]
[1747595268953,5.8792404,170.09,170.03,26.0]
[1747595269281,5.8792404,170.09,170.03,31.88124736]
[1747595269947,5.8792404,170.09,170.03,26.0]
[1747595270159,24.38047308,170.08,170.03,26.0]
[1747595270370,5.87993179,170.07,170.0,31.88205061]
[1747595271771,5.87958607,170.08,170.0,31.88205061]
[1747595273080,30.26005915,170.08,170.0,26.0]
[1747595273269,161.75709622,170.07,170.0,26.0]
[1747595273835,152.64865442,170.07,170.0,31.88225279]
[1747595273973,137.37662314,170.07,170.0,26.0]
[1747595274505,137.37662314,170.07,170.0,31.88222663]
[1747595274810,137.37662314,170.12,170.04,26.0]
[1747595275220,143.25349761,170.16,170.08,26.0]
[1747595276515,137.37662314,170.16,170.09,5.8792404]
[1747595277573,137.37662314,170.16,170.11,5.87854917]
[1747595277772,157.37664314,170.19,170.11,31.87854917]
[1747595279589,20.00002,170.19,170.16,5.87682181]
[1747595280224,20.00002,170.19,170.15,31.87709807]
[1747595280424,20.00002,170.19,170.15,26.0]
[1747595280630,20.00002,170.19,170.15,31.87713742]
[1747595283002,20.00002,170.19,170.18,26.0]
[1747595283825,20.00002,170.19,170.18,31.87613115]
[1747595284120,20.00002,170.19,170.18,50.52578001]
[1747595284621,20.00002,170.19,170.18,26.0]
[1747595284925,25.87586617,170.19,170.13,5.87753005]
[1747595285308,25.87586617,170.19,170.13,31.87753005]
[1747595285722,50.27996629,170.19,170.13,26.0]
[1747595285906,24.40410012,170.18,170.11,26.4783128]
[1747595286101,50.27996629,170.19,170.11,26.4783128]
[1747595286349,50.27996629,170.19,170.11,52.4783128]
[1747595287126,44.40412012,170.19,170.11,52.4783128]
[1747595287333,44.40412012,170.19,170.14,26.0]
[1747595287334,20.00002,170.19,170.14,26.0]
[1747595287809,20.00002,170.19,170.15,26.0]
[1747595288442,20.00002,170.19,170.13,26.0]
[1747595288725,20.00002,170.19,170.14,26.0]
[1747595288935,20.00002,170.19,170.11,20.6]
[1747595289131,24.40410012,170.18,170.11,46.6]
[1747595289445,24.40410012,170.15,170.07,18.64964886]
[1747595289610,24.40410012,170.15,170.06,20.6]
[1747595289813,24.40410012,170.16,170.07,26.0]
[1747595290035,24.40410012,170.16,170.07,18.64964886]
[1747595290229,24.40410012,170.15,170.07,18.64964886]
[1747595290404,24.40410012,170.15,170.07,44.64964886]
[1747595290723,159.62512314,170.17,170.07,50.52946935]
[1747595291050,157.97662314,170.17,170.1,26.0]
[1747595291345,137.37662314,170.17,170.11,44.64964886]
[1747595291533,25.87590893,170.19,170.11,44.64964886]
[1747595291742,20.00002,170.19,170.11,44.64964886]
[1747595291919,25.87596696,170.19,170.11,44.64964886]
[1747595292121,25.87596696,170.19,170.11,26.0]
[1747595292337,50.28006708,170.19,170.11,26.0]
[1747595292743,25.87596696,170.19,170.11,31.87835381]
[1747595292942,20.00002,170.19,170.12,18.64964886]
[1747595293339,20.00002,170.19,170.14,44.64964886]
[1747595294966,20.00002,170.19,170.15,5.8771672]
[1747595296560,20.00002,170.19,170.16,18.64964886]
[1747595296853,20.00002,170.19,170.15,5.8771672]
[1747595299749,20.00002,170.19,170.15,7.05225232]
[1747595299943,20.00002,170.19,170.16,18.64964886]
[1747595300146,20.00002,170.19,170.18,44.64964886]
[1747595300749,20.00002,170.19,170.18,50.52578001]
[1747595301273,20.00002,170.19,170.13,2.8350555]
[1747595301453,20.00002,170.19,170.14,18.64964886]
[1747595301651,20.00002,170.19,170.15,26.0]
[1747595301955,24.40410012,170.18,170.12,20.6]
[1747595302162,24.40410012,170.18,170.12,52.4781185]
[1747595302469,25.8758522,170.19,170.12,52.4781185]
[1747595302846,20.00002,170.19,170.12,52.4781185]
[1747595303391,24.40410012,170.15,170.09,2.90199995]
[1747595303679,15.27005462,170.1,170.09,2.90199995]
[1747595303839,15.27005462,170.1,170.02,26.0]
[1747595304038,15.27005462,170.08,170.02,26.0]
[1747595304439,20.58,170.14,170.04,26.0]
[1747595304640,15.27005462,170.1,170.04,26.0]
[1747595304862,21.14902499,170.1,170.03,5.88111532]
[1747595305062,21.14902499,170.1,170.04,26.0]
[1747595305275,15.27005462,170.09,170.04,26.0]
[1747595305650,24.42856422,170.09,170.04,26.0]
[1747595306493,30.30753459,170.1,170.04,26.0]
[1747595306985,137.37662314,170.15,170.05,18.64964886]
[1747595307145,24.42856422,170.13,170.05,18.64964886]
[1747595307347,24.42856422,170.12,170.05,18.64964886]
[1747595307688,24.42856422,170.13,170.05,18.64964886]
[1747595308059,24.42856422,170.13,170.06,5.88027754]
[1747595308060,5.87820362,170.12,170.06,5.88027754]
[1747595311432,30.30645819,170.13,170.06,5.88027754]
[1747595311889,30.30645819,170.13,170.05,24.53018277]
[1747595313595,24.42856422,170.13,170.05,24.53018277]
[1747595313754,137.37662314,170.15,170.08,26.0]
[1747595314076,40.58002,170.19,170.09,25.13154886]
[1747595314386,40.58002,170.19,170.12,26.0]
[1747595315313,46.4558654,170.19,170.12,26.0]
[1747595315598,20.00002,170.19,170.12,26.0]
[1747595315804,20.00002,170.19,170.13,5.8778581]
[1747595318319,20.00002,170.19,170.15,5.8771672]
[1747595318600,20.00002,170.19,170.15,31.8771672]
[1747595318966,20.00002,170.19,170.16,18.64964886]
[1747595320605,20.00002,170.19,170.17,5.87647646]
[1747595320991,20.00002,170.19,170.15,31.87716563]
[1747595323322,20.00002,170.19,170.15,26.0]
[1747595323683,25.87596531,170.19,170.15,26.0]
[1747595323989,20.00002,170.19,170.15,26.0]
[1747595324203,20.00002,170.19,170.15,31.87715074]
[1747595325385,20.00002,170.19,170.16,18.64964886]
[1747595328085,20.00002,170.19,170.17,5.87647646]
[1747595328291,20.00002,170.19,170.18,44.64964886]
[1747595330095,20.00002,170.19,170.18,50.52578001]
[1747595331289,20.00002,170.19,170.18,44.64964886]
[1747595331996,20.00002,170.19,170.18,50.52578001]
[1747595334711,20.00002,170.19,170.18,26.0]
[1747595336712,20.00002,170.19,170.17,20.56]
[1747595336893,20.00002,170.19,170.14,18.64964886]
[1747595337287,20.00002,170.19,170.15,26.0]
[1747595338084,20.00002,170.19,170.17,26.0]
[1747595338517,20.00002,170.19,170.17,31.876337]
[1747595339103,20.00002,170.19,170.18,18.64964886]
[1747595340311,20.00002,170.19,170.16,26.0]
[1747595341325,20.00002,170.19,170.17,18.64964886]
[1747595343613,20.00002,170.19,170.18,5.87613115]
[1747595343803,50.25839818,170.19,170.11,18.64964886]
[1747595344006,25.87604997,170.19,170.14,26.0]
[1747595344820,50.25839818,170.19,170.14,26.0]
[1747595345117,24.38234821,170.18,170.14,26.0]
[1747595345628,24.38234821,170.17,170.12,5.87820076]
[1747595346321,24.38234821,170.17,170.11,31.87854917]
[1747595346827,24.38234821,170.17,170.11,26.0]
[1747595348812,24.38234821,170.17,170.09,26.0]
[1747595349824,5.87682181,170.16,170.09,26.0]
[1747595350403,44.95122455,170.16,170.09,26.0]
[1747595350907,20.56887634,170.16,170.09,26.0]
[1747595351402,44.95122455,170.16,170.09,26.0]
[1747595351601,35.8242954,170.16,170.09,26.0]
[1747595352415,20.56887634,170.16,170.09,26.0]
[1747595353518,35.8242954,170.16,170.09,26.0]
[1747595353836,20.56887634,170.16,170.09,26.0]
[1747595356228,35.8242954,170.16,170.09,26.0]
[1747595357421,35.8242954,170.16,170.08,20.54]
[1747595358414,20.56887634,170.16,170.08,26.41952434]
[1747595358614,5.87682181,170.16,170.09,18.64964886]
[1747595359430,21.13224087,170.16,170.09,18.64964886]
[1747595360123,5.87682181,170.16,170.09,18.64964886]
[1747595360317,5.87652315,170.17,170.11,24.52819803]
[1747595360628,21.52422,170.19,170.11,24.52819803]
[1747595360629,20.00002,170.19,170.15,18.64964886]
[1747595360930,20.00002,170.19,170.15,19.82472776]
[1747595361456,20.00002,170.19,170.15,40.32472776]
[1747595362623,20.00002,170.19,170.17,18.64964886]
[1747595363109,20.00002,170.19,170.15,26.37715067]
[1747595364231,20.00002,170.19,170.16,18.64964886]
[1747595365025,20.00002,170.19,170.18,26.0]
[1747595365606,20.00002,170.19,170.18,44.64964886]
[1747595366014,17.2289581,170.19,170.18,45.82442017]
[1747595367037,23.63326908,170.3,170.23,18.64964886]
[1747595367426,29.50532847,170.3,170.23,18.64964886]
[1747595367767,23.63326908,170.3,170.23,18.64964886]
[1747595368284,22.73770255,170.32,170.26,26.0]
[1747595368586,6.3486,170.35,170.26,26.0]
[1747595368756,6.3486,170.35,170.27,18.64964886]
[1747595368950,12.21895695,170.35,170.28,5.87268029]
[1747595369147,15.25541906,170.34,170.27,5.87296443]
[1747595369469,15.25541906,170.34,170.26,26.0]
[1747595369669,12.21895695,170.35,170.26,26.0]
[1747595369670,27.47437601,170.35,170.26,26.0]
[1747595370944,27.47437601,170.35,170.26,31.87329834]
[1747595372076,12.21895695,170.35,170.26,31.87329834]
[1747595372275,27.47437601,170.35,170.26,31.87329834]
[1747595373579,152.6320422,170.36,170.28,5.87268029]
[1747595373761,158.50205588,170.36,170.28,5.87268029]
[1747595375273,15.25541906,170.35,170.28,5.87268029]
[1747595375572,21.12586046,170.35,170.28,5.87268029]
[1747595376080,15.25541906,170.33,170.24,26.0]
[1747595376367,15.25541906,170.32,170.28,26.0]
[1747595376746,15.25541906,170.33,170.28,26.0]
[1747595376966,15.25541906,170.34,170.28,26.0]
[1747595377271,26.3104414,170.35,170.28,31.87255336]
[1747595380073,5.8704414,170.35,170.28,31.87255336]
[1747595381275,21.12586046,170.35,170.28,31.87255336]
[1747595383961,5.8704414,170.35,170.28,31.87255336]
[1747595384288,152.6320422,170.36,170.28,31.87255336]
[1747595384600,137.37662314,170.36,170.29,26.22144886]
[1747595384774,137.37662314,170.4,170.32,26.0]
[1747595385076,137.37662314,170.4,170.33,18.64964886]
[1747595385469,143.24543789,170.4,170.33,18.64964886]
[1747595386060,15.25541906,170.39,170.33,18.64964886]
[1747595386376,158.50085695,170.4,170.33,18.64964886]
[1747595387078,15.25541906,170.39,170.33,5.87079251]
[1747595388482,143.24543789,170.4,170.33,5.87079251]
[1747595388689,158.50085695,170.4,170.33,5.87079251]
[1747595392090,15.25541906,170.38,170.32,31.87121128]
[1747595392280,15.25541906,170.39,170.32,31.87121128]
[1747595392667,158.50085695,170.4,170.32,31.87121128]
[1747595393096,15.25541906,170.39,170.32,31.87121128]
[1747595394487,152.6320422,170.4,170.33,18.64964886]
[1747595395191,137.37662314,170.4,170.33,18.64964886]
[1747595395994,143.245176,170.4,170.33,18.64964886]
[1747595396195,143.245176,170.4,170.34,5.87061171]
[1747595396379,158.50059506,170.4,170.34,5.87061171]
[1747595396997,158.50059506,170.4,170.32,31.87103743]
[1747595397193,15.25541906,170.39,170.32,31.87103743]
[1747595397397,143.245176,170.4,170.32,31.87103743]
[1747595397577,158.50059506,170.4,170.32,31.87103743]
[1747595398183,137.37662314,170.4,170.33,18.64964886]
[1747595399095,137.37662314,170.4,170.34,5.87061171]
[1747595399394,16.83961906,170.42,170.35,26.0]
[1747595399576,158.49978108,170.43,170.35,26.0]
[1747595400376,137.37662314,170.43,170.37,26.0]
[1747595400575,22.0093,170.46,170.37,26.0]
[1747595400776,15.25541906,170.45,170.37,26.0]
[1747595400989,1.6293,170.46,170.37,26.0]
[1747595401182,15.25541906,170.45,170.37,26.0]
[1747595401381,21.12224954,170.45,170.38,5.86923347]
[1747595401587,15.25541906,170.44,170.38,5.86923347]
[1747595401884,15.25541906,170.44,170.37,31.86950523]
[1747595403009,21.12272152,170.44,170.37,31.86950523]
[1747595403315,5.86730246,170.44,170.36,26.0]
[1747595403611,15.25541906,170.42,170.36,26.0]
[1747595405086,5.86820022,170.41,170.36,26.0]
[1747595405282,21.12336299,170.42,170.36,31.8699038]
[1747595406198,21.12336299,170.42,170.36,26.0]
[1747595407081,5.86794393,170.42,170.36,31.86988877]
[1747595407384,21.12336299,170.42,170.36,31.86988877]
[1747595408300,21.12336299,170.42,170.36,26.0]
[1747595409203,21.12336299,170.42,170.36,31.86985973]
[1747595410114,5.86794393,170.42,170.36,31.86985973]
[1747595410278,21.12336299,170.42,170.36,31.86985973]
[1747595411002,5.86794393,170.42,170.36,31.86985973]
[1747595411188,21.12336299,170.42,170.36,31.86985973]
[1747595411378,21.12336299,170.42,170.37,26.0]
[1747595412404,15.25541906,170.41,170.36,26.0]
[1747595412609,15.25541906,170.37,170.3,38.98964886]
[1747595412781,15.25541906,170.37,170.31,26.0]
[1747595413298,15.25541906,170.38,170.31,26.0]
[1747595413499,137.37662314,170.4,170.33,44.64964886]
[1747595414610,143.24524482,170.4,170.33,44.64964886]
[1747595415109,158.50066388,170.4,170.33,44.64964886]
[1747595415411,15.25541906,170.39,170.33,44.64964886]
[1747595415707,15.25541906,170.38,170.33,26.0]
[1747595416004,15.25541906,170.38,170.31,24.52129468]
[1747595416209,15.25541906,170.37,170.3,20.34]
[1747595416385,15.25541906,170.37,170.31,26.0]
[1747595417692,5.86992251,170.36,170.31,26.0]
[1747595418500,15.25541906,170.35,170.31,26.0]
[1747595419208,15.25541906,170.35,170.3,20.34]
[1747595419515,15.25541906,170.34,170.3,20.34]